Cogmind - Beta 13 @@@ ROGUE MODE // 2024.04.07 @ 20:00:52 Player: gabr Result: Destroyed by G-47 Trooper with Particle Gun Performance ------------- Evolutions (3) 1500 Regions Visited (8) 1600 Robots Destroyed (122) 610 Value Destroyed (3181) 3181 Prototype IDs (2) 40 Alien Tech Used (0) 0 Bonus (494) 494 TOTAL SCORE: 7425 Bonus ------- High Alert Combat Kills 112 Follower Combat Kills 382 Cogmind --------- Core Integrity 0/700 Matter 199/300 Energy 290/290 System Corruption 5% Temperature Cool (24) Movement Rolling (99) Ox1 Location -7/Factory Parts ------- > --- POWER (1) -------- Improved Deuterium Engine > --- PROPULSION (5) --- Wheel Wheel Wheel Wheel (fused) Compact Wheel > --- UTILITY (5) ------ High-capacity Storage Unit Improved Targeting Computer Improved Propulsion Shielding Improved Propulsion Shielding Tractor Beam > --- WEAPON (2) ------- Minigun Enhanced Autogun (fused) > --- INVENTORY (20) --- Light Nuclear Core Aluminum Leg Wheel Wheel Compact Wheel Compact Wheel Large Storage Unit Improved Signal Interpreter Improved Propulsion Shielding Gatling Laser Heavy Ion Cannon Minigun Enhanced Autogun Gauss Rifle Heavy Rocket Launcher Peak State ------------ > --- POWER ------------ Improved Deuterium Engine > --- PROPULSION ------- Titanium Leg Titanium Leg Titanium Leg Titanium Leg Improved Titanium Leg > --- UTILITY ---------- Huge Storage Unit Improved Targeting Computer Weapon Shielding Hardened Medium Armor Plating Hardened Medium Armor Plating > --- WEAPON ----------- Enhanced Autogun Enhanced Autogun > --- INVENTORY -------- Light Deuterium Engine Light Nuclear Core Light Nuclear Core Light Nuclear Core Aluminum Leg Aluminum Leg Titanium Leg Titanium Leg Titanium Leg Large Storage Unit Improved Signal Interpreter Minigun Minigun High-powered Shotgun High-powered Shotgun Enhanced Autogun Enhanced Autogun Enhanced Autogun Enhanced Autogun [Rating: 43] Favorites ----------- Power Light Ion Engine Engine Light Ion Engine Power Core Light Nuclear Core Propulsion Titanium Leg Leg Titanium Leg Wheel Wheel Utility Improved Targeting Computer Device Long-range Tractor Beam Storage Large Storage Unit Processor Improved Targeting Computer Hackware System Shield Protection Weapon Shielding Weapon Enhanced Autogun Energy Gun EM Shotgun Ballistic Gun Enhanced Autogun Build | -11 -10 -9 -9 -9 -8 -8 -8 -7 ------- Run | Yrd Mat Mat Min Exi Min Mat Sto Fac Slots Evolved 6 | . . 2 . . . 2 . 2 Power . | . . . . . . . . . Propulsion 3 | . . 1 . . . 1 . 1 Utility 3 | . . 1 . . . 1 . 1 Weapon . | . . . . . . . . . Parts Attached 108 | 6 4 15 2 . 1 4 25 51 Power 16 | 1 . 2 1 . 1 . 4 7 Engine 9 | 1 . 2 1 . . . 2 3 Core 7 | . . . . . 1 . 2 4 Reactor . | . . . . . . . . . Propulsion 45 | 2 . 6 . . . 3 11 23 Treads . | . . . . . . . . . Leg 32 | . . 4 . . . 3 10 15 Wheel 13 | 2 . 2 . . . . 1 8 Hover . | . . . . . . . . . Flight . | . . . . . . . . . Utility 26 | 1 2 2 1 . . 1 6 13 Device 3 | . . . . . . 1 . 2 Storage 7 | 1 1 . . . . . 3 2 Processor 1 | . . 1 . . . . . . Hackware 1 | . . . . . . . 1 . Protection 14 | . 1 1 1 . . . 2 9 Artifact . | . . . . . . . . . Weapon 21 | 2 2 5 . . . . 4 8 Energy Gun 3 | . . 2 . . . . . 1 Energy Cannon . | . . . . . . . . . Ballistic Gun 18 | 2 2 3 . . . . 4 7 Ballistic Cannon . | . . . . . . . . . Launcher . | . . . . . . . . . Special Weapon . | . . . . . . . . . Impact Weapon . | . . . . . . . . . Slashing Weapon . | . . . . . . . . . Piercing Weapon . | . . . . . . . . . Special Melee Weapon . | . . . . . . . . . Unidentified Prototypes 2 | . . . . . . . 2 . Parts Lost 53 | . . 6 . . 1 . 9 37 Power 8 | . . 1 . . . . 1 6 Propulsion 22 | . . 1 . . 1 . 5 15 Utility 13 | . . 1 . . . . 2 10 Weapon 10 | . . 3 . . . . 1 6 Highest Loss Streak 9 | . . 2 . . 1 . 5 9 To Critical Strikes 1 | . . . . . . . . 1 Average Slot Usage (%) 90 | . 83 80 100 100 98 93 94 86 Engine 6 | . 14 8 11 11 10 . 6 4 Core 1 | . . . . . . 9 2 2 Leg 27 | . . 17 33 33 31 36 29 27 Wheel 5 | . 24 12 . . . . 2 7 Storage 9 | . 14 11 11 11 11 9 9 7 Processor 8 | . . 6 11 11 11 9 9 7 Hackware 1 | . . . . . . . 4 . Protection 10 | . 7 3 11 11 11 9 11 12 Energy Gun 1 | . . 9 . . . . . . Ballistic Gun 16 | . 21 11 22 22 22 18 17 14 Naked Turns . | . . . . . . . . . Heaviest Build 107 | 11 32 34 30 30 32 33 99 107 Greatest Support 88 | 20 20 36 24 24 24 50 68 88 Greatest Overweight (x) 9 | . 2 2 1 1 2 . 9 5 Average Overweight (x) . | . . . 1 1 1 . . . Largest Inventory Capacity 25 | 8 15 15 15 15 15 15 25 25 Average Capacity 18 | 7 10 15 15 15 15 15 21 22 Most Carried 21 | 3 10 15 7 6 8 7 20 21 Average Carried 11 | 1 7 10 6 6 6 6 11 14 Final Capacity 25 | 8 15 15 15 15 15 15 25 20 Final Carried 20 | 3 10 8 6 6 8 7 20 15 Class Distribution -------------------- 80% | Mutant 11% | Commander-Mutant 8% | Scavenger-Mutant Dominant Class ---------------- Mutant | -10/Materials Mutant | -9/Materials Mutant | -9/Mines Mutant | -9/Exiles Mutant | -8/Mines Mutant | -8/Materials Mutant | -8/Storage Mutant | -7/Factory Resources | -11 -10 -9 -9 -9 -8 -8 -8 -7 ----------- Run | Yrd Mat Mat Min Exi Min Mat Sto Fac Matter Collected 3662 | 183 132 334 . . 60 53 1005 1895 Remotely 490 | . . . . . . . . 490 Salvage Created 4828 | . 171 1008 . . 44 53 1133 2419 Parts 269 | . 9 61 . . 2 2 70 125 Haulers Intercepted 8 | . 1 1 . . . 1 4 1 Recyclers Shooed 14 | . . 4 . . . . 3 7 Parts Field Recycled . | . . . . . . . . . Retrieved Matter . | . . . . . . . . . Parts Self-Destructed . | . . . . . . . . . Prevented . | . . . . . . . . . Kills | -11 -10 -9 -9 -9 -8 -8 -8 -7 ------- Run | Yrd Mat Mat Min Exi Min Mat Sto Fac Combat Hostiles Destroyed 74 | . 2 19 . . 1 . 19 33 Guns 69 | . 2 15 . . 1 . 19 32 AOE 3 | . . 3 . . . . . . Classes Destroyed 16 | . 3 6 . . . . 4 3 Worker 12 | . 1 3 . . . . 2 6 Builder 10 | . . 2 . . . . 3 5 Tunneler 1 | . . . . . . . . 1 Hauler 8 | . 1 1 . . . 1 4 1 Recycler 11 | . . 2 . . . . 2 7 Mechanic 1 | . . . . . . . 1 . Operator 1 | . . . . . . . 1 . Watcher 4 | . . 2 . . . . 1 1 Swarmer 17 | . . 7 . . . . 6 4 Grunt 31 | . 2 8 . . 1 . 5 15 Brawler 2 | . . 1 . . . . 1 . Duelist 2 | . . . . . . . 1 1 Sentry 14 | . . 3 . . . . 5 6 Demolisher 1 | . . . . . . . . 1 Hunter 3 | . . . . . . . 1 2 Programmer 4 | . . . . . . . . 4 Best Kill Streak 6 | . 3 6 . . 1 1 6 6 Combat Bots Only 6 | . 2 6 . . 1 . 4 3 Max Kills in Single Turn 2 | . 1 2 . . 1 1 2 2 Gunslinging 1 | . . 1 . . . . . . Exploded 1 | . . 1 . . . . . . Melee . | . . . . . . . . . Uniques/NPCs Destroyed . | . . . . . . . . . Combat | -11 -10 -9 -9 -9 -8 -8 -8 -7 -------- Run | Yrd Mat Mat Min Exi Min Mat Sto Fac Hostile Shots Fired 916 | . 4 96 . . 4 5 118 689 Missed 304 | . 1 23 . . 1 2 29 248 Damage Taken 7592 | . 39 847 . . 45 27 1392 5242 Core 1106 | . 5 95 . . 13 7 280 706 Absorbed by Shields . | . . . . . . . . . Redirected to Shielding 147 | . . . . . 5 3 50 89 Regen/Repaired (Parts) 113 | . . . . . . . 113 . Core Remaining (%) 79 | 100 98 . . . 73 . 47 . Volleys Fired 384 | . 11 55 . . 4 1 86 227 Largest 2 | . 2 2 . . 2 2 2 2 Hottest 94 | . 46 90 . . 50 50 50 94 Shots Fired 734 | . 22 105 . . 8 2 169 428 Gun 734 | . 22 105 . . 8 2 169 428 Cannon . | . . . . . . . . . Launcher . | . . . . . . . . . Special . | . . . . . . . . . Kinetic 687 | . 22 70 . . 8 2 169 416 Thermal 12 | . . . . . . . . 12 Explosive . | . . . . . . . . . Electromagnetic 35 | . . 35 . . . . . . Robot Hit Streak 18 | . 4 18 . . 2 2 11 18 Robot Miss Streak 5 | . 3 5 . . 1 . 4 5 Penetration Max . | . . . . . . . . . Secondary Targets 7 | . . 3 . . . . 2 2 Max Gunslinging Chain 1 | . . 1 . . . . 1 1 Shots Hit Robots 495 | . 12 76 . . 5 1 112 289 Core Hits 202 | . 6 35 . . 2 1 52 106 Critical Kills 4 | . . 2 . . . . 1 1 Critical Parts Destroyed 4 | . . . . . . . . 4 Critical Strikes 8 | . . 2 . . . . 1 5 Destroy 8 | . . 2 . . . . 1 5 Melee Attacks . | . . . . . . . . . Impact . | . . . . . . . . . Slashing . | . . . . . . . . . Piercing . | . . . . . . . . . Sneak Attacks . | . . . . . . . . . Combat Hostiles . | . . . . . . . . . Follow-up Attacks . | . . . . . . . . . Damage Inflicted 9145 | . 177 1364 . . 84 18 2077 5425 Guns 8863 | . 174 1217 . . 83 18 2024 5347 Cannons . | . . . . . . . . . Explosions 131 | . . 131 . . . . . . Melee . | . . . . . . . . . Ramming 151 | . 3 16 . . 1 . 53 78 Kinetic 8347 | . 174 838 . . 83 18 2024 5210 Thermal 268 | . . 131 . . . . . 137 Explosive . | . . . . . . . . . Electromagnetic 379 | . . 379 . . . . . . Impact . | . . . . . . . . . Slashing . | . . . . . . . . . Piercing . | . . . . . . . . . Highest Corruption 6 | . . . . . . . 6 5 Average Corruption 4 | . . . . . . . 5 4 Corruption Purged . | . . . . . . . . . Corruption Blocked . | . . . . . . . . . Effects 63 | . . . . . . . 36 27 Message Errors 15 | . . . . . . . 6 9 Matter Fused 13 | . . . . . . . 9 4 Heat Flow Errors 6 | . . . . . . . 2 4 Energy Discharges 9 | . . . . . . . 8 1 Parts Rejected 1 | . . . . . . . 1 . Parts Fused 3 | . . . . . . . 1 2 Data Loss (minor) 8 | . . . . . . . 4 4 Data Loss (major) 2 | . . . . . . . 1 1 Misfires 3 | . . . . . . . 2 1 Weapon Failures 3 | . . . . . . . 2 1 Overload Shots . | . . . . . . . . . Overflow Damage . | . . . . . . . . . Projectiles . | . . . . . . . . . Explosions . | . . . . . . . . . Melee . | . . . . . . . . . Knockbacks 1 | . . . . . . . . 1 Impact 1 | . . . . . . . . 1 Kinetic . | . . . . . . . . . Secondary . | . . . . . . . . . Self-Inflicted Damage 47 | . 1 39 . . . . 7 . Shots 1 | . . 1 . . . . . . Rammed 3 | . 2 . . . . . 1 . Targets Rammed 24 | . 2 4 . . 1 . 9 8 Kicked 21 | . . 4 . . 1 . 8 8 Crushed . | . . . . . . . . . Highest Temperature 252 | . 6 59 . . 26 2 148 252 Average Temperature 31 | . 3 19 . . 13 1 12 44 Received Heat Transfer 2460 | . 18 276 . . 27 . 360 1779 Siege Activations . | . . . . . . . . . Robots Corrupted 1 | . . 1 . . . . . . Combat Hostiles 1 | . . 1 . . . . . . Parts Fried 4 | . . 4 . . . . . . Impact Corruptions . | . . . . . . . . . Robots Melted 1 | . . . . . . . . 1 Combat Hostiles 1 | . . . . . . . . 1 Parts Melted . | . . . . . . . . . Heat Transferred 459 | . . 200 . . . . . 259 Parts Sabotaged . | . . . . . . . . . Parts Stolen . | . . . . . . . . . Parts Stripped . | . . . . . . . . . Power Chain Reactions 3 | . . 3 . . . . . . Alert | -11 -10 -9 -9 -9 -8 -8 -8 -7 ------- Run | Yrd Mat Mat Min Exi Min Mat Sto Fac Peak Influence 588 | . 52 437 170 . 50 41 588 461 Initial 267 | . . 21 170 . . 19 16 267 Average 277 | . 27 277 170 . 2 21 365 296 Maximum Alert Level 2 | . . 2 . . . . 2 2 Low Security (%) 26 | 100 100 20 100 . 100 100 11 11 Level 1 59 | . . 70 . . . . 59 78 Level 2 14 | . . 8 . . . . 29 10 Level 3 . | . . . . . . . . . Level 4 . | . . . . . . . . . Level 5 . | . . . . . . . . . High Security . | . . . . . . . . . Max Security . | . . . . . . . . . Squads Dispatched 23 | . . . . . 1 . 7 15 Investigation 3 | . . . . . . . 2 1 Extermination 4 | . . . . . . . . 4 Reinforcement 6 | . . . . . 1 . 1 4 Assault . | . . . . . . . . . Garrison 10 | . . . . . . . 4 6 Intercept . | . . . . . . . . . Searches Triggered . | . . . . . . . . . Construction Impeded 3 | . . . . . 1 . . 2 Haulers Reinforced 1 | . . . . . . . . 1 Active Scanning Responses . | . . . . . . . . . Cargo Convoy Interrupts . | . . . . . . . . . Stealth | -11 -10 -9 -9 -9 -8 -8 -8 -7 --------- Run | Yrd Mat Mat Min Exi Min Mat Sto Fac Distress Signals 6 | . . 3 . . . . 1 2 Communications Jammed . | . . . . . . . . . Distress Signals . | . . . . . . . . . Times Spotted 119 | . 3 27 . . 2 3 33 51 Peak Tracking Total 6 | . 2 6 . . 3 3 4 6 Tactical Retreats 6 | . . 1 . . 1 . . 4 Traps | -11 -10 -9 -9 -9 -8 -8 -8 -7 ------- Run | Yrd Mat Mat Min Exi Min Mat Sto Fac Traps Triggered 9 | . 2 1 . . . . 3 3 Indirectly . | . . . . . . . . . Trap Hack Attempts . | . . . . . . . . . Triggered . | . . . . . . . . . Disarmed . | . . . . . . . . . Reprogrammed . | . . . . . . . . . Reused . | . . . . . . . . . Traps Extracted . | . . . . . . . . . Installed . | . . . . . . . . . Triggered . | . . . . . . . . . Machines | -11 -10 -9 -9 -9 -8 -8 -8 -7 ---------- Run | Yrd Mat Mat Min Exi Min Mat Sto Fac Machines Disabled 4 | . . 2 . . . 1 . 1 Max in Single Turn 1 | . . 1 . . . 1 . . Machines Repaired . | . . . . . . . . . Machines Dismantled . | . . . . . . . . . Machines Sabotaged . | . . . . . . . . . Overloaded Fab Kills . | . . . . . . . . . Hacking | -11 -10 -9 -9 -9 -8 -8 -8 -7 --------- Run | Yrd Mat Mat Min Exi Min Mat Sto Fac Machines Accessed 9 | . . . . 4 . . 4 1 Terminals 3 | . . . . . . . 3 . Fabricators . | . . . . . . . . . Repair Stations 1 | . . . . . . . 1 . Recycling Units 1 | . . . . . . . . 1 Scanalyzers . | . . . . . . . . . Garrison Access . | . . . . . . . . . Total Hacks 56 | . . . . 49 . . 6 1 Successful 55 | . . . . 49 . . 5 1 Failed 1 | . . . . . . . 1 . Catastrophic . | . . . . . . . . . Database Lockouts . | . . . . . . . . . Manual 2 | . . . . 1 . . 1 . Terminals 4 | . . . . . . . 4 . Fabricators . | . . . . . . . . . Repair Stations 2 | . . . . . . . 2 . Recycling Units 1 | . . . . . . . . 1 Scanalyzers . | . . . . . . . . . Garrison Access . | . . . . . . . . . Terminal Hacks 52 | . . . . 49 . . 3 . Record 50 | . . . . 49 . . 1 . Open Door 2 | . . . . . . . 2 . Fabricator Hacks . | . . . . . . . . . Repair Station Hacks 2 | . . . . . . . 2 . Scan Component 1 | . . . . . . . 1 . Repair 1 | . . . . . . . 1 . Recycling Unit Hacks 1 | . . . . . . . . 1 Report Inventory 1 | . . . . . . . . 1 Scanalyzer . | . . . . . . . . . Garrison Access Hacks . | . . . . . . . . . Unauthorized Hacks . | . . . . . . . . . Terminals . | . . . . . . . . . Fabricators . | . . . . . . . . . Repair Stations . | . . . . . . . . . Recycling Units . | . . . . . . . . . Scanalyzers . | . . . . . . . . . Garrison Access . | . . . . . . . . . Data Cores Recovered 1 | . . . . . . . 1 . Used . | . . . . . . . . . Hacking Detections 3 | . . . . . . . 2 1 Full Trace Events . | . . . . . . . . . Feedback Events . | . . . . . . . . . Feedback Blocked . | . . . . . . . . . Robot Schematics Acquired . | . . . . . . . . . Robots Built . | . . . . . . . . . Authchips . | . . . . . . . . . Time . | . . . . . . . . . Total Robot Build Rating . | . . . . . . . . . Part Schematics Acquired . | . . . . . . . . . Parts Built . | . . . . . . . . . Authchips . | . . . . . . . . . Time . | . . . . . . . . . Total Part Build Rating . | . . . . . . . . . Parts Repaired 1 | . . . . . . . 1 . Time 38 | . . . . . . . 38 . Parts Recycled . | . . . . . . . . . Recycled Matter . | . . . . . . . . . Retrieved Matter . | . . . . . . . . . Retrieved Components . | . . . . . . . . . Parts Scanalyzed . | . . . . . . . . . Part Schematics Acquired . | . . . . . . . . . Parts Damaged . | . . . . . . . . . Bothacking | -11 -10 -9 -9 -9 -8 -8 -8 -7 ------------ Run | Yrd Mat Mat Min Exi Min Mat Sto Fac Used RIF Installer . | . . . . . . . . . Robots Hacked . | . . . . . . . . . Non-combat . | . . . . . . . . . Combat . | . . . . . . . . . Robot Hacks Applied . | . . . . . . . . . Relay Couplers Released . | . . . . . . . . . Fabnet Peak Effective % . | . . . . . . . . . Robots Rewired . | . . . . . . . . . Allies Hacked . | . . . . . . . . . Hacks Repelled . | . . . . . . . . . Allies | -11 -10 -9 -9 -9 -8 -8 -8 -7 -------- Run | Yrd Mat Mat Min Exi Min Mat Sto Fac Total Allies 10 | . . . . . . . 10 . Largest Group 10 | . . . . . . . 10 7 Highest-Rated Group 173 | . . . . . . . 173 123 Highest-Rated Ally 29 | . . . . . . . 29 29 Total Orders . | . . . . . . . . . Ally Attacks 89 | . . . . . . . 42 47 Total Damage 981 | . . . . . . . 459 522 Kills 12 | . . . . . . . 8 4 Allies Corrupted . | . . . . . . . . . Allies Melted . | . . . . . . . . . Intel | -11 -10 -9 -9 -9 -8 -8 -8 -7 ------- Run | Yrd Mat Mat Min Exi Min Mat Sto Fac Robot Analysis Total . | . . . . . . . . . Derelict Logs Recovered . | . . . . . . . . . Drone Launches . | . . . . . . . . . Drone Recoveries . | . . . . . . . . . Exploration | -11 -10 -9 -9 -9 -8 -8 -8 -7 ------------- Run | Yrd Mat Mat Min Exi Min Mat Sto Fac Turns Passed 6261 | 47 231 682 212 926 174 157 1574 2258 Spaces Moved 3288 | 43 195 410 117 514 87 142 712 1068 Core 1 | 1 . . . . . . . . Treads . | . . . . . . . . . Legs 2388 | . . 159 117 514 87 142 682 687 Wheels 899 | 42 195 251 . . . . 30 381 Hover . | . . . . . . . . . Flight . | . . . . . . . . . Fastest Speed 50 | 50 80 80 180 180 180 105 105 85 Average Speed 151 | 79 88 115 180 180 186 105 171 151 Slowest Speed 480 | 80 110 270 180 180 270 105 480 470 Overloaded Moves . | . . . . . . . . . Propulsion Burnouts . | . . . . . . . . . Robots Hopped . | . . . . . . . . . Cave-ins Triggered . | . . . . . . . . . Exploration Rate (%) 37 | 3 39 37 32 71 27 14 88 26 Regions Visited 8 Branch Regions 4 Pre-discovered Areas 2 | . . . 1 1 . . . . Known Exits Taken . | . . . . . . . . . Unknown Exits Taken 8 | 1 1 1 1 1 1 1 1 . Scrap Searched 1 | . . . . . 1 . . . Spaces Dug . | . . . . . . . . . Terrain Destroyed 7 | . . 7 . . . . . . Melee . | . . . . . . . . . Projectile . | . . . . . . . . . AOE 7 | . . 7 . . . . . . Terrain Rammed . | . . . . . . . . . Walls Destroyed . | . . . . . . . . . Machines Disabled . | . . . . . . . . . Actions | -11 -10 -9 -9 -9 -8 -8 -8 -7 --------- Run | Yrd Mat Mat Min Exi Min Mat Sto Fac Total 4001 | 53 233 525 119 515 93 147 915 1401 Wait 117 | . 8 24 1 2 . . 58 24 Move 3280 | 42 194 409 116 513 86 141 711 1068 Hop . | . . . . . . . . . Pick Up 54 | 4 9 11 . . 1 1 15 13 Fast Attach 38 | 6 1 3 . . . 1 11 16 Attach 45 | . . 11 2 . . 2 5 25 Detach 6 | . . 2 . . . . 3 1 Swap 25 | . 3 1 . . 1 1 9 10 Drop 18 | 1 5 5 . . . . 6 1 Fire 384 | . 11 55 . . 4 1 86 227 Melee . | . . . . . . . . . Ram 3 | . 2 . . . . . 1 . Kick 21 | . . 4 . . 1 . 8 8 Crush . | . . . . . . . . . Escape Stasis 8 | . . . . . . . . 8 Rewire 2 | . . . . . . . 2 . Trap . | . . . . . . . . . Miscellaneous . | . . . . . . . . . Route ------- -11/Scrapyard -10/Materials -9/Materials (discovered 2 exits: [*Min x2]) -9/Mines -9/Exiles (discovered 2 exits: [*Min x2]) -8/Mines -8/Materials -8/Storage -7/Factory History --------- Turn | Location | Event 17 | -11/Scrapyard | Discovered new exit (range 16) 48 | -11/Scrapyard | Entered Materials 267 | -10/Materials | Discovered new exit (range 7) 279 | -10/Materials | Entered another Materials area 279 | -9/Materials | Evolved 2 slots: Propulsion x1, Utility x1 300 | -9/Materials | Build established: Mutant 845 | -9/Materials | Discovered new exit (range 15) 876 | -9/Materials | Discovered new exit (range 15) 961 | -9/Materials | Entered Mines 962 | -9/Mines | Learned location of Storage (-8) 1018 | -9/Mines | Assembled infested the area 1089 | -9/Mines | Met 8R-AWN 1166 | -9/Mines | Discovered new exit (range 5) 1173 | -9/Mines | Entered Exiles 1217 | -9/Exiles | Welcomed by 8R-AWN 1245 | -9/Exiles | Met EX-HEX 1303 | -9/Exiles | Met EX-BIN 1507 | -9/Exiles | Met EX-DEC 1654 | -9/Exiles | Learned location of Zion (-6) 1717 | -9/Exiles | Discovered new exit (range 10) 2034 | -9/Exiles | Learned about 8R-AWN's background 2079 | -9/Exiles | Discovered new exit (range 14) 2099 | -9/Exiles | Entered Mines 2261 | -8/Mines | Discovered new exit (range 4) 2273 | -8/Mines | Entered Materials 2273 | -8/Materials | Evolved 2 slots: Propulsion x1, Utility x1 2416 | -8/Materials | Discovered new exit (range 13) 2430 | -8/Materials | Entered Storage 2488 | -8/Storage | Garrison activated, responded to threat 2577 | -8/Storage | Lost 5 parts (1p1n2u1w) 2729 | -8/Storage | Repaired Minigun 2819 | -8/Storage | Garrison activated, responded to threat 3103 | -8/Storage | Core integrity fell below 50% 3423 | -8/Storage | Assisted by bots powering up and referring to "LRC-V3" 3722 | -8/Storage | Build established: Commander-Mutant 3988 | -8/Storage | Discovered new exit (range 8) 4004 | -8/Storage | Entered Factory 4004 | -7/Factory | Accompanied by 7 allies 4004 | -7/Factory | Evolved 2 slots: Propulsion x1, Utility x1 4047 | -7/Factory | Garrison activated, responded to threat 4101 | -7/Factory | Lost 3 allies 4189 | -7/Factory | Lost 4 allies 4444 | -7/Factory | Build established: Mutant 4786 | -7/Factory | Lost 4 parts (1p3u) 5025 | -7/Factory | Garrison activated, responded to threat 5103 | -7/Factory | Core integrity fell below 50% 5113 | -7/Factory | Lost 9 parts (1p5n2u1w) 5156 | -7/Factory | Lost 3 parts (1p1n1w) 5530 | -7/Factory | Core integrity fell below 20% 5556 | -7/Factory | Lost 8 parts (4n3u1w) 5638 | -7/Factory | Lost 3 parts (1p1n1w) 6097 | -7/Factory | Build established: Scavenger-Mutant 6262 | -7/Factory | Destroyed by G-47 Trooper with Particle Gun Last Messages --------------- 06153_ Acquired Tractor Beam. 06154_ Acquired 10 matter. 06157_ K-01 Serf collects debris. 06163_ A-02 Transporter calls for reinforcements. 06163_ ALERT: Hostile activity reported, dispatching reinforcements to area. 06166_ K-01 Serf collects debris. 06176_ System corrupted: Component data lost. 06192_ K-01 Serf destroyed. 06193_ Acquired 21 matter. 06193_ K-01 Serf collects debris. 06200_ System corrupted: Wheel fused. 06220_ K-01 Serf cleans the Subcomponent Replicator. 06224_ Acquired Hvy. Ion Cannon. 06230_ K-01 Serf cleans the Subcomponent Replicator. 06239_ G-47 Trooper suffers critical hit (Destroy). 06239_ G-47 Trooper destroyed. 06245_ System corrupted: FCS attempts to trigger Minigun. 06245_ System corrupted: Minigun misfires. 06253_ System corrupted: Minigun jammed. Map ----- +----------------------------------------------------+ | ????????????????????????????# #??# # !""" "" | | ????????????????????????????# #??# # """ "" | | ????????????????????????????# #??# # | | ????????????????????????????# #??## ##* """ "" | | ????????????????????????????# #???# ## """ "" | | ????????????????????????????# #???# ## """ "" | | ????????????????????????????# #???# ## | | ????????????????????????????# #???# #######??? | | ????????????????????????????# ##### #????????? | | ????????????????????????????# % #????????? | | ????????????????????????????# ###????????? | | ????????????????????????????# #??????????? | | ????????????????????????##### #??????????? | | ????????????????????????# ###????????? | | ????????????????????????# T"#????????? | | ????????????????????????# ""#????????? | | ????????????????????????#%###+####### ###????????? | | ????????????????????????#*# #? #??????????? | | ?????????????###????????# # #? #??????????? | | ?????????? ! ! ###g# #? #??????????? | | ?????????? / =%! ! # #? #??????????? | | ?????????? ! ### ##########?+#??????????? | | ?????????????###????????# #??????????????????????? | | ????????????????????????# #??????????????????????? | | ????????????????????????# #??????????????????????? | | ????????????????????????#@#?????????????????????? | | ????????????????????????# #?????????????????????## | | ????????????????????????#k#?????????????????????? | | ????????????????????????# #?????????????????????# | | ????????????????????????# #?????????????????????# | | ????????????????????????# #?????????????????????# | | ???????????????##########/###???????????????????# | | ???????????????# o #???????????????????# | | ???????????????# #??????????????????# | | ???????????????# #+##+################! | | ???????????????# # # | | ???????????????# # # | | ???????????????# ] + # | | ???????????????# """ """ # % # | | ???????????????# """ """ # #? | | ???????????????# """ """ #?###+######### #? | | ???????????????# "" "" #?????????????# %## | | ???????????????# "" "" #?????????????#% | | ???????????????# #?????????????# % | | ???????????????#########/####?????????????# | | ???????????????????????# #???############## | | ???????????????????????# #???# ! !# | | ???????????????????????# #???# # %## | | ???????????????????????# #???# # #? | | ???????????????????????#*#???# # #? | +----------------------------------------------------+ Best States ------------- Heat Dissipation 34 Energy Generation 16 Energy Capacity 290 Matter Stores 300 Matter Capacity 300 Sight Range 16 Terrain Scan Density 10 Armor Coverage 450 Propulsion Shielding 66 Weapon Shielding 33 Evasion (%) 57 Targeting Accuracy 6 Recoil Reduction 4 Defensive Hacking 10 Item Schematics ----------------- None Robot Schematics ------------------ None Fabricated ------------ Nothing Alien Tech Used ----------------- None Achievements -------------- None Challenges ------------ None Game ------ Seed SalvageLinearImmobilizer Manual? 0 Play Time 01:02:10 Cumulative 65.0 hours Start 2024.04.07 @ 19:01:36 End 2024.04.07 @ 20:00:52 Sessions 1 Manual Loads 0 Difficulty Rogue Special Mode None Game No. 146 Rogue 146 Adventurer 0 Explorer 0 Win Type - Total 0 Types 0/0/0/0/0/0/0/0/0 Lore% 27 Gallery% 41 Achievement% 31 Wizard Run 0 Options --------- Layout 0 ASCII 0 Keyboard 1 Movement Numpad Keybinds 0 Fullscreen 1 Font 24/Terminus Map View 76x50 Zoom Use 0% Tactical HUD 1 Map Filters NONE Filters NONE Steam 1 RUN: cf651eb5-6a76-4a25-8854-00e1df5b0c75